{"text_format":"3","workbook":"xlsx","n_sheets":2,"sheets":["タイムライン","詳細情報"],"not_rendered":{"charts":1,"images":2,"defined_names":2},"read":"whole","date_system":"1900"}

{"sheet":"タイムライン","index":0,"n_rows":49,"n_cols":10,"rows_kept":49}
[]
[]
[]
[{"$nulls":9},"Vertex42.com によるタイムライン テンプレート"]
[{"$nulls":9},"https://www.vertex42.com/ExcelTemplates/timeline.html"]
[]
[]
[{"$nulls":9},"このテンプレートを使用するためのヒント"]
[{"$nulls":9},"• データ テーブルを編集する際に行全体を挿入、削除する"]
[{"$nulls":9},"• ラベル列を空白のままにしない"]
[{"$nulls":9},"• 横軸を書式設定して最小値または最大値の境界を設定する"]
[{"$nulls":9},"• -100 から 50 までの垂直方向の位置を入力する"]
[{"$nulls":9},"• 個々のデータ ラベルまたはマーカーの書式を設定して特定のイベントを強調表示する"]
[{"$nulls":9},"• 詳細については、テーブルのヘッダー行のセル コメントを読む"]
[]
[{"$nulls":9},"その他のメモ"]
[{"$nulls":9},"• マイルス トーンの引き出し線は Y の誤差範囲"]
[{"$nulls":9},"•  タスクの引き出し線は Y の誤差範囲"]
[{"$nulls":9},"• タスクの期間は X の誤差範囲"]
{"$rows_empty":8}
[null,"タスク"]
[null,"スタート​​","終了","期間","ラベル","間隔 (垂直)位置","間隔 (垂直)線"]
[]
[null,"2018-03-28",{"$f":"B31+D31-1","v":"2018-04-11"},15,{"$f":"\"タスク 1 \"&CHAR(10)&TEXT(B31,\"m月d日\")&\" - \"&TEXT(C31,\"m月d日\")","v":"タスク 1 \n3月28日 - 4月11日"},-25,{"$f":"F31","v":-25}]
[null,{"$f":"C31+1","v":"2018-04-12"},"2018-05-01",20,{"$f":"\"タスク 2 \"&CHAR(10)&TEXT(B32,\"m月d日\")&\" - \"&TEXT(C32,\"m月d日\")","v":"タスク 2 \n4月12日 - 5月1日"},{"$f":"F31-15","v":-40},{"$f":"F32-F31","v":-15}]
[null,{"$f":"C32+1","v":"2018-05-02"},"2018-05-25",24,{"$f":"\"タスク 3 \"&CHAR(10)&TEXT(B33,\"m月d日\")&\" - \"&TEXT(C33,\"m月d日\")","v":"タスク 3 \n5月2日 - 5月25日"},{"$f":"F32-15","v":-55},{"$f":"F33-F32","v":-15}]
[null,"2018-04-28","2018-07-12",76,"タスク ラベル 4",-80,{"$f":"F34","v":-80}]
[null,"2018-06-15","2018-07-04",20,"タスク ラベル 5",-30,{"$f":"F35","v":-30}]
[null,{"$f":"C35+1","v":"2018-07-05"},"2018-08-03",30,"タスク ラベル 6",{"$f":"F35-15","v":-45},{"$f":"F36-F35","v":-15}]
[null,"2018-08-10","2018-09-10",32,"タスク ラベル 7",-20,{"$f":"F37","v":-20}]
[null,{"$f":"C37+1","v":"2018-09-11"},"2018-09-15",5,"タスク ラベル 8",-60,{"$f":"F38-F37","v":-40}]
[null,{"$f":"C38+1","v":"2018-09-16"},"2018-10-06",21,"タスク ラベル 9",{"$f":"F38-15","v":-75},{"$f":"F39-F38","v":-15}]
[{"$nulls":4},"この行の上に新しい行を挿入する"]
[]
[null,"マイルストーン"]
[null,"日付",null,null,"ラベル","位置"]
[]
[null,"2018-04-02",null,null,{"$f":"\"開始​​, \"&TEXT(B45,\"m月d日\")","v":"開始​​, 4月2日"},30]
[null,{"$f":"C33","v":"2018-05-25"},null,null,"マイルストーン 1",25]
[null,{"$f":"C36","v":"2018-08-03"},null,null,"マイルストーン 2",20]
[null,{"$f":"C39","v":"2018-10-06"},null,null,{"$f":"\"配達, \"&TEXT(B48,\"m月d日\")","v":"配達, 10月6日"},15]
[{"$nulls":4},"この行の上に新しい行を挿入する"]

{"sheet":"詳細情報","index":1,"n_rows":19,"n_cols":2,"rows_kept":19}
[]
[null,"Vertex42.com によるプロジェクト タイムライン"]
[null,"https://www.vertex42.com/ExcelTemplates/project-timeline.html"]
[]
[]
[null,"このテンプレートについて"]
[null,"このテンプレートでは、データ ラベルと誤差範囲のある散布図を使用して、期間付きのマイルストーンとタスクの両方を表示するプロジェクト タイムラインを作成します。各タスクを別々の行に表示するガント チャートとは異なり、タイムラインのタスクの垂直方向の配置をコントロールします。タスクの依存関係を示すのに役立つ、垂直方向の引き出し線の長さを指定できます。"]
[]
[null,"この類いのプロジェクト タイムラインは、詳細な作業分解構造が表示されているのではなく、基本的には一般的なプロジェクトの概要に役立ちます。"]
[]
[null,"その他のテンプレート"]
[null,"Vertex42.com にアクセスして、その他のタイムラインとプロジェクト管理テンプレートをダウンロードできます。"]
[null,"その他のタイムライン テンプレート"]
[null,"その他のプロジェクト管理テンプレート"]
[]
[null,"Vertex42 について"]
[null,"Vertex42.com では、企業、家庭、教育用に本格的なデザインのスプレッドシート テンプレートを提供しています。この大部分は無料でダウンロードすることができます。Vertex42.com のコレクションには、各種のカレンダー、プランナー、スケジュールに加えて、予算作成、債務削減、ローン返済用の個人の財務に関するスプレッドシートも含まれています。"]
[]
[null,"企業向けには、請求書、タイム シート、在庫管理、財務諸表、プロジェクト計画策定テンプレートがあります。学生と教師向けには、授業計画表、成績表、出席簿などのリソースがあります。献立表、チェックリスト、運動記録を使用して家族の生活を整理しましょう。各テンプレートは、数千のユーザーからのフィードバックを基に時間をかけて十分に研究、調整、改良されたものです。"]